fUSD/lending_fUSD_20251117
["ID","MTS","AMOUNT","RATE_DAILY","PERIOD"]
[394283698,1763416874400,-301.4547,0.00041565,120]
[394283699,1763416874443,-301.4547,0.00041565,120]
[394283700,1763416874486,-301.454692,0.00041565,120]
[394283701,1763416874529,-196.669606,0.00041565,120]
[394283702,1763416874572,-162.649007,0.00041565,120]
[394283703,1763416874614,-196.669606,0.00041565,120]
[394283704,1763416874659,-151.0,0.00041565,120]
[394283705,1763416874702,-162.649007,0.00041565,120]
[394283706,1763416874750,-290.268906,0.00041565,120]
[394283707,1763416874792,-196.669606,0.00041565,120]
[394283708,1763416874835,-219.03467,0.00041565,120]
[394283709,1763416874881,-162.649007,0.00041565,120]
[394283710,1763416874926,-290.268906,0.00041565,120]
[394283711,1763416874969,-196.669606,0.00041565,120]
[394283712,1763416875014,-162.649016,0.00041565,120]
[394283713,1763416875057,-290.268906,0.00041565,120]
[394283714,1763416875100,-290.268899,0.00041565,120]
[394283715,1763416875146,-151.0,0.00041565,120]
[394283716,1763416875188,-151.0,0.00041565,120]
[394283717,1763416875231,-151.0,0.00041565,50]
[394283718,1763416875273,-151.0,0.00041565,50]
[394283719,1763416875315,-198.435955,0.00041565,120]
[394283720,1763416875358,-151.0,0.00041565,120]
[394283721,1763416875401,-151.0,0.00041565,50]
[394283722,1763416875442,-198.435955,0.00041565,120]
[394283723,1763416875485,-198.435955,0.00041565,120]
[394283724,1763416875529,-198.435955,0.00041565,120]
[394283725,1763416875571,-151.0,0.00041565,120]
[394283726,1763416875612,-301.4479,0.00041565,120]
[394283727,1763416875654,-151.0,0.00041565,120]
[394283728,1763416875696,-151.0,0.00041565,120]
[394283729,1763416875738,-151.0,0.00041565,120]
[394283730,1763416875781,-151.0,0.00041565,120]
[394283731,1763416875824,-151.0,0.00041565,120]
[394283732,1763416875871,-151.0,0.00041565,120]
[394283733,1763416875915,-151.0,0.00041565,120]
[394283734,1763416875974,-186.849536,0.00041565,120]
[394283735,1763416876019,-151.0,0.00041565,120]
[394283736,1763416876277,-186.849536,0.00041565,120]
[394283737,1763416876327,-186.849536,0.00041565,120]
[394283738,1763416876373,-186.849536,0.00041565,120]
[394283739,1763416876417,-151.0,0.00041565,120]
[394283740,1763416876463,-151.0,0.00041565,30]
[394283741,1763416876508,-151.0,0.00041565,30]
[394283742,1763416876556,-151.0,0.00041565,30]
[394283743,1763416876602,-239.352003,0.00041565,120]
[394283744,1763416876662,-692.86,0.00041642,30]
[394283745,1763416876708,-248.71531821,0.00041705,30]
[394283746,1763416876752,-257.91778498,0.00041705,31]
[394283747,1763416876796,-267.46074303,0.00041705,32]
[394283748,1763416876837,-692.86,0.00041916,30]
[394283749,1763416876884,-239.84119403,0.00041999,42]
[394283750,1763416876929,-692.86,0.0004219,30]
[394283751,1763416876973,-200.0,0.00042239,120]
[394283752,1763416877018,-692.89231827,0.00042464,30]
[394283753,1763416877065,-274.7,0.000427,30]
[394283754,1763416877110,-150.0,0.000432,60]
[394283755,1763416877155,-160.59,0.000438,30]
[394283756,1763416877202,-200.0,0.00043839,120]
[394283757,1763416877247,-231.28369723,0.00044786,30]
[394283758,1763416877293,-274.7,0.00045,30]
[394283759,1763416877337,-150.0,0.00045,120]
[394283760,1763416877378,-150.0,0.00045,120]
[394283761,1763416877419,-150.0,0.00045,120]
[394283762,1763416877460,-176.40615341,0.00045342,30]
[394283763,1763416877502,-176.40615341,0.00045836,30]
[394283764,1763416877544,-223.0315306,0.00045986,31]
[394283765,1763416877587,-176.40615341,0.00046329,30]
[394283766,1763416877631,-160.59,0.000472,30]
[394283767,1763416877674,-274.7,0.000472,30]
[394283768,1763416877718,-200.0,0.0004796,120]
[394283769,1763416877760,-150.0,0.00048,120]
[394283770,1763416877802,-222.09537418,0.00048021,120]
[394283771,1763416877846,-215.0738,0.0004804,30]
[394283772,1763416877897,-222.09537418,0.00048345,120]
[394283773,1763416877941,-222.09537418,0.00048641,120]
[394283774,1763416877984,-222.09537418,0.00048805,120]
[394283775,1763416878029,-4622.13108,0.0004882,44]
[394283776,1763416878078,-4622.13107,0.0004889,44]
[394283777,1763416878127,-50000.0,0.00049,49]
[394283778,1763416878171,-1000.0,0.00049,90]
[394283779,1763416878220,-1000.0,0.00049,90]
[394283780,1763416878269,-1000.0,0.00049,90]
[394283781,1763416878320,-239.859,0.00049,90]
[394283782,1763416878370,-4622.13108,0.0004901,45]
[394283783,1763416878414,-222.09537418,0.0004921,120]
[394283784,1763416878458,-4622.13107,0.00049315,46]
[394283785,1763416878500,-4622.13107,0.00049315,46]
[394283786,1763416878543,-4622.13108,0.00049315,46]
[394283787,1763416878585,-222.09537418,0.00049363,120]
[394283788,1763416878628,-274.7,0.000494,30]
[394283789,1763416878671,-222.09537418,0.00049849,120]
[394283790,1763416878718,-207.4,0.00049875,31]
[394283791,1763416878761,-1000.0,0.0004999,120]
[394283792,1763416878803,-1000.0,0.0004999,120]
[394283793,1763416878846,-1000.0,0.0004999,120]
[394283794,1763416878890,-1000.0,0.0004999,120]
[394283795,1763416878933,-1000.0,0.0004999,120]
[394283796,1763416878975,-1000.0,0.0004999,120]
[394283797,1763416879017,-1000.0,0.0004999,120]
[394283798,1763416879058,-1000.0,0.0004999,120]
[394283799,1763416879100,-1000.0,0.0004999,120]
[394283800,1763416879143,-1000.0,0.0004999,120]
[394283801,1763416879184,-200.0,0.00049999,30]
[394283802,1763416879227,-357.91790409,0.00049999,120]
[394283803,1763416879269,-470.7462329,0.00049999,120]
[394283804,1763416879312,-500.0,0.00049999,120]
[394283805,1763416879352,-500.0,0.00049999,120]
[394283806,1763416879395,-413.26438979,0.00049999,120]
[394283807,1763416879439,-418.07958784,0.00049999,120]
[394283808,1763416879480,-50000.0,0.0005,50]
[394283809,1763416879526,-81491.68167007,0.0005,120]
[394283810,1763416879566,-490.84642028,0.0005,120]
[394283811,1763416879605,-87544.77445088,0.0005,120]
[394283812,1763416879645,-347.97012865,0.0005,120]
[394283813,1763416879685,-210.11,0.0005,120]
[394283814,1763416879727,-500.0,0.0005,120]
[394283815,1763416879768,-1000.0,0.0005,60]
[394283816,1763416879812,-646541.59,0.0005,120]
[394283817,1763416879854,-7154.84661759,0.0005,120]
[394283818,1763416879897,-221.7,0.0005,120]
[394283819,1763416879940,-476.17186222,0.0005,120]
[394283820,1763416879994,-13194.76821472,0.0005,120]
[394283821,1763416880043,-416.48563266,0.0005,120]
[394283822,1763416880094,-412.16,0.0005,120]
[394283823,1763416880150,-333.10200881,0.0005,120]
[394283824,1763416880206,-150.06200954,0.0005,120]
[394283825,1763416880258,-102296.43090441,0.0005,120]
[394283826,1763416880310,-150.0,0.0005,70]
[394283827,1763416880364,-400000.0,0.0005,120]
[394283828,1763416880413,-500.0,0.0005,30]
[394283829,1763416880461,-500.0,0.0005,30]
[394283830,1763416880511,-500.0,0.0005,120]
[394283831,1763416880559,-200.0,0.0005,120]
[394283832,1763416880608,-7101.25584908,0.0005,120]
[394283833,1763416880658,-1095.0,0.0005,30]
[394283834,1763416880706,-200.0,0.0005,120]
[394283835,1763416880752,-2239.0,0.0005,30]
[394283836,1763416880799,-560.0,0.00050002,120]
[394283837,1763416880858,-150.0,0.00050053,120]
[394283838,1763416880909,-397.5,0.000501,30]
[394283839,1763416880965,-222.09537418,0.00050182,120]
[394283840,1763416881015,-150.0,0.00050183,120]
[394283841,1763416881061,-151.0,0.000502,120]
[394283842,1763416881107,-153.0,0.000502,120]
[394283843,1763416881157,-1000000.0,0.000505,120]
[394283844,1763416881206,-451295.06055565,0.000505,120]
[394283845,1763416882213,732.69,0.00013699,2]
[394283846,1763416885047,1231.3,0.00010337,2]
[394283847,1763416885076,1231.3,0.00010881,2]
[394283848,1763416885108,1231.3,0.00011425,2]
[394283849,1763416885144,1231.3,0.00011969,2]
[394283850,1763416885176,1231.3,0.00012513,2]
[394283851,1763416885208,1231.3,0.00013057,2]
[394283852,1763416885253,48.52447708,0.00013601,2]
[394283853,1763416885275,1182.77552292,0.00013601,2]
[394283854,1763416885306,1231.3,0.00014145,2]
[394283855,1763416885338,1231.3,0.00014689,2]
[394283856,1763416885366,1231.3,0.00015233,2]
[394283857,1763416885394,1231.3,0.00015777,2]
[394283858,1763416885607,1231.3,0.00016321,2]
[394283859,1763416885644,1231.3,0.00016865,2]
[394283860,1763416885683,1231.3,0.00017409,2]
[394283861,1763416885716,198.13447708,0.00017953,2]
[394283862,1763416885740,1033.16552292,0.00017953,2]
[394283863,1763416961623,-300.0,0.00017998,2]
[394283864,1763416965766,495.0,0.00017998,2]
[394283865,1763417101251,300.0,0.00017998,2]
[394283866,1763417101814,1200.0,0.00017998,2]
[394283867,1763417161370,300.0,0.00017998,2]
[394283868,1763417221725,261.0,0.00017998,2]
[394283869,1763417238282,-500.0,0.00017999,2]
[394283870,1763417238308,-500.0,0.00017999,2]
[394283871,1763417238337,-500.0,0.00017999,2]
[394283872,1763417238362,-500.0,0.00017999,2]
[394283873,1763417238388,-500.0,0.00017999,2]
[394283874,1763417238413,-500.0,0.00017999,2]
[394283876,1763417296520,500.0,0.00017999,2]
[394283877,1763417296776,500.0,0.00017999,2]
[394283878,1763417297040,500.0,0.00017999,2]
[394284004,1763417432298,-664.94991349,0.00018497,2]
[394284005,1763417432413,-566.35008651,0.00018497,2]
[394284006,1763417432423,-300.0,0.00019,2]
[394284007,1763417432432,-1231.3,0.00019041,2]
[394284008,1763417432442,-1231.3,0.00019585,2]
[394284009,1763417432452,-1231.3,0.00020129,2]
[394284010,1763417432462,-1200.0,0.00020186,2]
[394284011,1763417432471,-732.69,0.00020187,2]
[394284012,1763417432481,-300.0,0.00020672,2]
[394284013,1763417432491,-1231.3,0.00020673,2]
[394284014,1763417432500,-1500.0,0.00020673,2]
[394284015,1763417432509,-150.0,0.00020673,2]
[394284016,1763417432519,-350.0,0.00021,2]
[394284017,1763417432527,-516.0,0.00022082,2]
[394284018,1763417432537,-150.0,0.00022204,2]
[394284019,1763417432546,-420.0,0.00022494,2]
[394284020,1763417432555,-479.1746172,0.00023278,2]
[394284021,1763417432564,-549.0,0.00024477,2]
[394284022,1763417432573,-1357.25399004,0.00024784,2]
[394284023,1763417432583,-732.69,0.00026676,2]
[394284024,1763417432592,-174.0,0.0003,14]
[394284025,1763417432601,-732.69,0.00033165,2]
[394284026,1763417432611,-500.0,0.00033967,5]
[394284027,1763417432620,-240.1,0.00034078,37]
[394284028,1763417432628,-21347.24,0.00036182,2]
[394284029,1763417432637,-150.0,0.00036282,2]
[394284030,1763417432647,-237.51,0.00036437,2]
[394284032,1763417432656,-1000.0,0.00036437,2]
[394284034,1763417432665,-183.44,0.00036614,120]
[394284035,1763417432674,-1175.27,0.00036678,120]
[394284037,1763417432683,-200.0,0.00036803,2]
[394284038,1763417432692,-214.35,0.00036934,2]
[394284039,1763417432702,-151.0,0.00036953,2]
[394284040,1763417432711,-151.0,0.00036953,2]
[394284041,1763417432720,-151.0,0.00036953,2]
[394284042,1763417432730,-151.0,0.00036953,2]
[394284043,1763417432739,-151.0,0.00036953,2]
[394284044,1763417432748,-151.0,0.00036953,2]
[394284045,1763417432757,-151.0,0.00036953,2]
[394284046,1763417432766,-151.0,0.00036953,2]
[394284047,1763417432775,-151.0,0.00036953,2]
[394284048,1763417432784,-151.0,0.00036953,2]
[394284049,1763417432793,-151.0,0.00036953,2]
[394284050,1763417432803,-151.0,0.00036953,2]
[394284051,1763417432812,-151.0,0.00036953,2]
[394284052,1763417432822,-151.0,0.00036953,2]
[394284053,1763417432832,-151.0,0.00036953,2]
[394284054,1763417432843,-151.0,0.00036953,2]
[394284055,1763417432853,-298.83418799,0.00036953,2]
[394284056,1763417432863,-729.82,0.00036955,2]
[394284057,1763417432873,-13771.16,0.00036975,2]
[394284058,1763417432883,-500.0,0.00037171,5]
[394284059,1763417432894,-500.0,0.00037171,5]
[394284060,1763417432905,-500.0,0.00037171,5]
[394284061,1763417432914,-500.0,0.00037171,5]
[394284062,1763417432926,-500.87094628,0.00037171,5]
[394284063,1763417432935,-500.0,0.00037171,2]
[394284064,1763417432945,-164.82503081,0.00037171,5]
[394284065,1763417432955,-150.0,0.00037307,7]
[394284066,1763417432965,-150.0,0.00037307,7]
[394284067,1763417432974,-150.0,0.00037307,7]
[394284068,1763417432984,-150.0,0.00037307,7]
[394284069,1763417432994,-150.0,0.00037307,7]
[394284070,1763417433004,-150.0,0.00037307,7]
[394284071,1763417433014,-150.0,0.00037307,7]
[394284072,1763417433023,-150.0,0.00037307,7]
[394284073,1763417433033,-150.0,0.00037307,7]
[394284074,1763417433042,-150.0,0.00037307,7]
[394284075,1763417433052,-150.0,0.00037307,7]
[394284076,1763417433061,-2163.53,0.00037405,2]
[394284077,1763417433071,-500.0,0.0003745,5]
[394284078,1763417433080,-150.0,0.00037603,7]
[394284079,1763417433093,-150.0,0.00037721,7]
[394284080,1763417433103,-1300.37323243,0.00037742,4]
[394284081,1763417433112,-1000.0,0.000378,2]
[394284082,1763417433122,-776.39002363,0.00037802,2]
[394284083,1763417433132,-1000.0,0.00037803,2]
[394284084,1763417433141,-500.0,0.00037808,2]
[394284085,1763417433151,-150.0,0.00037899,7]
[394284086,1763417433161,-150.0,0.00037899,7]
[394284087,1763417433170,-150.0,0.00037998,7]
[394284088,1763417433179,-500.0,0.00037998,5]
[394284089,1763417433188,-357.55,0.00037999,2]
[394284090,1763417433197,-819.24,0.00038053,30]
[394284091,1763417433207,-150.0,0.00038136,7]
[394284092,1763417433217,-150.0,0.00038136,7]
[394284093,1763417433227,-150.0,0.00038136,7]
[394284094,1763417433235,-150.0,0.00038136,7]
[394284095,1763417433245,-150.0,0.00038195,7]
[394284096,1763417433254,-1275.0,0.00038272,2]
[394284097,1763417433263,-793.0,0.00038272,2]
[394284098,1763417433272,-150.0,0.00038491,7]
[394284099,1763417433281,-150.0,0.00038491,7]
[394284100,1763417433290,-150.0,0.0003855,7]
[394284101,1763417433299,-1191.0,0.00038657,2]
[394284102,1763417433309,-1604.0,0.00038657,2]
[394284103,1763417433319,-560.0,0.00038657,2]
[394284104,1763417433330,-3223.548,0.00038657,2]
[394284105,1763417433339,-150.0,0.00038689,7]
[394284106,1763417433348,-150.0,0.00038689,7]
[394284107,1763417433358,-150.0,0.00038787,7]
[394284108,1763417433367,-150.0,0.00038965,7]
[394284109,1763417433376,-150.0,0.00038965,7]
[394284110,1763417433385,-150.0,0.00038965,7]
[394284111,1763417433394,-150.0,0.00038965,7]
[394284112,1763417433404,-402.0,0.00039042,7]
[394284113,1763417433413,-150.0,0.00039083,7]
[394284114,1763417433422,-150.0,0.00039083,7]
[394284115,1763417433431,-302.9,0.0003916,2]
[394284116,1763417433440,-1000.0,0.0003917,2]
[394284117,1763417433450,-150.0,0.00039379,7]
[394284118,1763417433459,-150.0,0.00039379,7]
[394284119,1763417433468,-150.0,0.00039379,7]
[394284120,1763417433477,-150.0,0.00039379,7]
[394284121,1763417433487,-732.69,0.00039654,2]
[394284122,1763417433496,-150.0,0.00039676,7]
[394284123,1763417433505,-150.0,0.00039676,7]
[394284124,1763417433517,-500.0,0.00039722,2]
[394284125,1763417433526,-150.0,0.00039794,7]
[394284126,1763417433535,-150.0,0.00039794,7]
[394284127,1763417433544,-150.0,0.00039794,7]
[394284128,1763417433553,-150.0,0.00039794,7]
[394284129,1763417433562,-300.0,0.00039802,2]
[394284130,1763417433571,-150.0,0.00039972,7]
[394284131,1763417433580,-150.0,0.0004007,7]
[394284132,1763417433589,-150.0,0.0004007,7]
[394284133,1763417433598,-222.09537419,0.00040082,2]
[394284134,1763417433607,-1778.89,0.00040191,2]
[394284135,1763417433616,-150.0,0.00040208,7]
[394284136,1763417433625,-150.0,0.00040268,7]
[394284137,1763417433635,-150.0,0.00040268,7]
[394284138,1763417433644,-222.09537419,0.00040505,2]
[394284139,1763417433653,-300.0,0.0004053,2]
[394284140,1763417433662,-1000.0,0.00040536,2]
[394284141,1763417433671,-150.0,0.00040564,7]
[394284142,1763417433680,-222.09537419,0.00040597,2]
[394284143,1763417433689,-150.0,0.00040623,7]
[394284144,1763417433699,-150.0,0.00040623,7]
[394284145,1763417433709,-150.0,0.00040623,7]
[394284146,1763417433719,-150.0,0.00040623,7]
[394284147,1763417433727,-150.0,0.00040761,7]
[394284148,1763417433736,-1010.0,0.000408,7]
[394284149,1763417433745,-1000.0,0.00040822,14]
[394284150,1763417433754,-150.0,0.00040839,2]
[394284151,1763417433763,-261.861,0.00040839,2]
[394284152,1763417433772,-189.031,0.00040839,2]
[394284153,1763417433781,-217.65,0.00040839,2]
[394284154,1763417433790,-150.0,0.0004086,7]
[394284155,1763417433799,-150.0,0.0004086,7]
[394284156,1763417433808,-201.27734776,0.00040865,19]
[394284157,1763417433817,-2122.43233731,0.00040875,15]
[394284158,1763417433826,-9314.91809845,0.00040875,15]
[394284159,1763417433835,-178.7016018,0.00040875,15]
[394284160,1763417433844,-205.86742148,0.00040875,13]
[394284161,1763417433853,-161.54951054,0.00040875,28]
[394284162,1763417433862,-1247.2735,0.00040875,2]
[394284163,1763417433871,-2500.0,0.00040875,2]
[394284164,1763417433881,-5241.4562,0.00040875,2]
[394284165,1763417433891,-234.7706,0.00040875,2]
[394284166,1763417433900,-551.2239,0.00040885,120]
[394284167,1763417433909,-1000.0,0.00040885,2]
[394284168,1763417433918,-3724.2581,0.00040885,2]
[394284169,1763417433927,-2122.43233729,0.0004094,15]
[394284170,1763417433936,-9314.91809837,0.0004094,15]
[394284171,1763417433945,-222.09537421,0.00040961,2]
[394284172,1763417433954,-12923.0253475,0.00040965,4]
[394284173,1763417433963,-4369.86160832,0.00040965,4]
[394284174,1763417433976,-1515.09423458,0.00040965,4]
[394284175,1763417433988,-1565.64063114,0.00040965,4]
[394284176,1763417433998,-2422.07999342,0.00040965,4]
[394284177,1763417440225,-524.9326699,0.00040965,4]
[394284199,1763417440464,-3016.294232,0.00040965,4]
[394284200,1763417440476,-656.26420001,0.00040965,4]
[394284201,1763417440569,-70.27417702,0.00040965,4]
[394284202,1763417440583,-596.298,0.00040965,4]
[394284203,1763417440595,-250.29304959,0.00040965,4]
[394284209,1763417443498,-379.0853321,0.00040965,4]
[394284210,1763417443556,-433.70090424,0.00040965,4]
[394284212,1763417443622,-300.0,0.00040965,4]
[394284214,1763417443936,-223.05225147,0.00040965,4]
[394284220,1763417446494,-1189.0,0.00038657,2]
[394284221,1763417446504,-28121.91863816,0.00040965,4]
[394284222,1763417446556,-333.10628558,0.00040965,4]
[394284282,1763417594560,-697.84855738,0.00038949,30]
[394284283,1763417594601,-300.0,0.0004046,119]
[394284284,1763417594642,-300.0,0.00040765,119]
[394284285,1763417594685,-300.0,0.00040765,119]
[394284286,1763417594729,-300.0,0.00040765,119]
[394284287,1763417594773,-1065.225,0.00040964,59]
[394284288,1763417594815,-166.88,0.00040964,59]
[394284289,1763417594860,-235.07060055,0.00040975,30]
[394284290,1763417594901,-1000.60956687,0.00040975,30]
[394284291,1763417594944,-152.62,0.00041,30]
[394284292,1763417594992,-151.0,0.00041095,120]
[394284293,1763417595037,-151.0,0.00041095,120]
[394284294,1763417595078,-491.36036228,0.00041095,30]
[394284295,1763417595119,-151.0,0.00041095,120]
[394284296,1763417595165,-151.0,0.00041095,120]
[394284297,1763417595207,-363.59887469,0.00041095,30]
[394284298,1763417595250,-500.0,0.00041095,30]
[394284299,1763417595292,-507.55789473,0.00041095,30]
[394284300,1763417595333,-500.0,0.00041095,30]
[394284301,1763417595379,-510.30675814,0.00041095,30]
[394284302,1763417595424,-500.0,0.00041095,30]
[394284303,1763417595466,-500.0,0.00041095,30]
[394284304,1763417595509,-500.0,0.00041095,30]
[394284305,1763417595551,-500.0,0.00041095,30]
[394284306,1763417595593,-500.0,0.00041095,30]
[394284307,1763417595634,-500.0,0.00041095,30]
[394284308,1763417595677,-500.0,0.00041095,30]
[394284309,1763417595719,-500.0,0.00041095,30]
[394284310,1763417595760,-500.0,0.00041095,30]
[394284311,1763417595803,-500.0,0.00041095,30]
[394284312,1763417595847,-500.0,0.00041095,30]
[394284313,1763417595894,-500.0,0.00041095,30]
[394284314,1763417595941,-500.0,0.00041095,30]
[394284315,1763417595984,-500.0,0.00041095,30]
[394284316,1763417596028,-266.03010402,0.00041095,30]
[394284317,1763417596070,-500.0,0.00041095,30]
[394284318,1763417596119,-500.0,0.00041095,30]
[394284319,1763417596168,-400.0,0.00041095,30]
[394284320,1763417596220,-500.0,0.00041095,30]
[394284321,1763417596265,-500.0,0.00041095,30]
[394284322,1763417596310,-500.0,0.00041095,30]
[394284323,1763417596356,-500.0,0.00041095,30]
[394284324,1763417596400,-500.0,0.00041095,30]
[394284325,1763417596447,-500.0,0.00041095,30]
[394284326,1763417596493,-406.57031722,0.00041095,30]
[394284327,1763417596531,-162.95617709,0.00041095,30]
[394284328,1763417596569,-508.22190349,0.00041095,30]
[394284329,1763417596606,-500.0,0.00041095,30]
[394284330,1763417596645,-500.0,0.00041095,30]
[394284331,1763417596686,-558.90522229,0.00041095,30]
[394284332,1763417596728,-250.91704864,0.00041095,30]
[394284333,1763417596769,-500.0,0.00041095,30]
[394284334,1763417596809,-500.0,0.00041095,30]
[394284335,1763417596851,-500.0,0.00041095,30]
[394284336,1763417596892,-500.0,0.00041095,30]
[394284337,1763417597107,-505.13781347,0.00041095,30]
[394284338,1763417597149,-500.0,0.00041095,30]
[394284339,1763417597194,-500.0,0.00041095,30]
[394284340,1763417597240,-500.0,0.00041095,30]
[394284341,1763417597284,-221.93146326,0.00041095,30]
[394284342,1763417597330,-504.68473326,0.00041095,30]
[394284343,1763417597377,-500.0,0.00041095,30]
[394284344,1763417597419,-500.0,0.00041095,30]
[394284345,1763417597461,-509.69508719,0.00041095,30]
[394284346,1763417597502,-500.0,0.00041095,30]
[394284347,1763417597543,-500.0,0.00041095,30]
[394284348,1763417597583,-500.0,0.00041095,30]
[394284349,1763417597624,-500.0,0.00041095,30]
[394284350,1763417597663,-504.68805628,0.00041095,30]
[394284351,1763417597701,-500.0,0.00041095,30]
[394284352,1763417597739,-500.0,0.00041095,30]
[394284353,1763417597783,-513.61975122,0.00041095,30]
[394284354,1763417597825,-500.0,0.00041095,30]
[394284355,1763417597866,-500.0,0.00041095,30]
[394284356,1763417597906,-500.0,0.00041095,30]
[394284357,1763417597949,-500.0,0.00041095,30]
[394284358,1763417597992,-500.0,0.00041095,30]
[394284359,1763417598035,-500.0,0.00041095,30]
[394284360,1763417598079,-500.0,0.00041095,30]
[394284361,1763417598122,-500.0,0.00041095,30]
[394284362,1763417598170,-500.0,0.00041095,30]
[394284363,1763417598214,-500.0,0.00041095,30]
[394284364,1763417598260,-500.0,0.00041095,30]
[394284365,1763417598302,-150.0,0.00041101,30]
[394284366,1763417598343,-150.0,0.00041156,30]
[394284367,1763417598385,-500.0,0.00041329,30]
[394284368,1763417598424,-191.30894254,0.00041344,120]
[394284369,1763417598465,-191.30894253,0.00041405,120]
[394284370,1763417598507,-500.0,0.00041443,30]
[394284371,1763417598548,-229.322567,0.00041444,120]
[394284372,1763417598587,-151.0,0.00041444,120]
[394284373,1763417598629,-150.0,0.00041452,30]
[394284374,1763417598671,-150.0,0.00041452,30]
[394284375,1763417598711,-239.8541501,0.00041452,30]
[394284376,1763417598754,-289.59592031,0.00041452,30]
[394284377,1763417598795,-236.30611164,0.00041452,30]
[394284378,1763417598835,-150.0,0.00041452,30]
[394284379,1763417598876,-286.23562698,0.00041452,30]
[394284380,1763417598916,-150.0,0.00041452,30]
[394284381,1763417598959,-150.0,0.00041452,30]
[394284382,1763417598995,-150.0,0.00041452,30]
[394284383,1763417599034,-500.0,0.00041458,30]
[394284384,1763417599072,-642.82664111,0.00041458,30]
[394284385,1763417599110,-151.0,0.00041459,120]
[394284386,1763417599152,-151.0,0.00041459,120]
[394284387,1763417599192,-151.0,0.00041459,120]
[394284388,1763417599233,-151.0,0.00041459,120]
[394284389,1763417599277,-151.0,0.00041459,120]
[394284390,1763417599326,-191.30894253,0.00041465,120]
[394284391,1763417599372,-160.59,0.000415,30]
[394284392,1763417599415,-235.07060055,0.00041559,30]
[394284393,1763417599455,-235.07060055,0.00041559,30]
[394284394,1763417599500,-151.0,0.00041559,120]
[394284395,1763417599540,-151.244925,0.00041559,120]
[394284396,1763417599586,-151.0,0.00041559,120]
[394284397,1763417599632,-151.0,0.00041559,120]
[394284398,1763417599675,-151.0,0.00041559,120]
[394284399,1763417599717,-152.191482,0.00041559,120]
[394284400,1763417599759,-151.0,0.00041559,120]
[394284401,1763417599800,-151.0,0.00041559,120]
[394284402,1763417599841,-151.0,0.00041559,120]
[394284403,1763417599887,-151.0,0.00041559,120]
[394284404,1763417599928,-151.0,0.00041559,120]
[394284405,1763417599969,-151.0,0.00041559,120]
[394284406,1763417600011,-151.0,0.00041559,120]
[394284407,1763417600055,-151.0,0.00041559,120]
[394284408,1763417600101,-151.0,0.00041559,120]
[394284409,1763417600147,-151.0,0.00041559,120]
[394284410,1763417600188,-151.0,0.00041559,120]
[394284411,1763417600229,-151.0,0.00041559,120]
[394284412,1763417600269,-151.0,0.00041559,120]
[394284413,1763417600311,-151.0,0.00041559,120]
[394284414,1763417600355,-151.0,0.00041559,120]
[394284415,1763417600396,-151.80873,0.00041559,120]
[394284416,1763417600437,-1000.60956687,0.00041559,30]
[394284417,1763417600478,-1000.60956687,0.00041559,30]
[394284418,1763417600519,-1000.60956687,0.00041559,30]